[Event "*** Titled Tuesday Blitz"]
[Site "Chess.com"]
[Date "2021.04.06"]
[Round "3"]
[White "Vamostodorecto"]
[Black "mitrabhaa"]
[Result "0-1"]
[WhiteElo "2450"]
[BlackElo "2737"]
[TimeControl "180+1"]
[EndTime "10:27:15 PDT"]
[Termination "mitrabhaa won by checkmate"]

1. d4 {[%clk 0:03:00.9]} 1... Nf6 {[%clk 0:02:59.9]} 2. c4 {[%clk 0:02:58.4]}
2... c5 {[%clk 0:03:00.2]} 3. d5 {[%clk 0:02:57.3]} 3... b5 {[%clk 0:03:00.3]}
4. cxb5 {[%clk 0:02:57.6]} 4... a6 {[%clk 0:03:00.3]} 5. Nc3 {[%clk 0:02:58.5]}
5... axb5 {[%clk 0:03:00.1]} 6. e4 {[%clk 0:02:58]} 6... b4 {[%clk 0:03:00.3]}
7. Nb5 {[%clk 0:02:58.7]} 7... d6 {[%clk 0:02:58.7]} 8. a4 {[%clk 0:02:58.8]}
8... g6 {[%clk 0:02:56.1]} 9. b3 {[%clk 0:02:58]} 9... Bg7 {[%clk 0:02:55.8]}
10. Bb2 {[%clk 0:02:58.7]} 10... O-O {[%clk 0:02:56.7]} 11. Qc2 {[%clk 0:02:59]}
11... Ba6 {[%clk 0:02:57]} 12. Bd3 {[%clk 0:02:59.1]} 12... Nbd7 {[%clk
0:02:57.4]} 13. Nf3 {[%clk 0:02:59]} 13... Nh5 {[%clk 0:02:55.4]} 14. Bxg7
{[%clk 0:02:57.3]} 14... Kxg7 {[%clk 0:02:56.3]} 15. O-O {[%clk 0:02:56.5]}
15... Nf4 {[%clk 0:02:56.1]} 16. Bc4 {[%clk 0:02:56.3]} 16... f6 {[%clk
0:02:52.6]} 17. Rfe1 {[%clk 0:02:49.9]} 17... Ne5 {[%clk 0:02:52.6]} 18. Nxe5
{[%clk 0:02:48.2]} 18... fxe5 {[%clk 0:02:53.5]} 19. Kh1 {[%clk 0:02:30.9]}
19... Qd7 {[%clk 0:02:52.7]} 20. f3 {[%clk 0:02:01.1]} 20... g5 {[%clk
0:02:47.1]} 21. Rad1 {[%clk 0:01:59.3]} 21... h5 {[%clk 0:02:46.9]} 22. Qf2
{[%clk 0:01:44.6]} 22... Kh6 {[%clk 0:02:44.2]} 23. Bf1 {[%clk 0:01:27.1]} 23...
Rf6 {[%clk 0:02:42.7]} 24. Qd2 {[%clk 0:01:16.5]} 24... Raf8 {[%clk 0:02:40.8]}
25. g3 {[%clk 0:00:54.6]} 25... Ng6 {[%clk 0:02:40.6]} 26. Be2 {[%clk
0:00:51.1]} 26... h4 {[%clk 0:02:37.4]} 27. Rg1 {[%clk 0:00:48.9]} 27... hxg3
{[%clk 0:02:35.7]} 28. Rxg3 {[%clk 0:00:49.8]} 28... Nf4 {[%clk 0:02:35.7]} 29.
Rdg1 {[%clk 0:00:42.3]} 29... Nh3 {[%clk 0:02:27.8]} 30. Rxg5 {[%clk 0:00:37.6]}
30... Nf4 {[%clk 0:02:10.7]} 31. R5g4 {[%clk 0:00:24.2]} 31... Kh7 {[%clk
0:02:09.9]} 32. Qe1 {[%clk 0:00:17.4]} 32... Rh6 {[%clk 0:02:08.7]} 33. Qg3
{[%clk 0:00:15.5]} 33... Qe8 {[%clk 0:02:00.8]} 34. Rg7+ {[%clk 0:00:14.9]}
34... Kh8 {[%clk 0:02:00.8]} 35. Nc7 {[%clk 0:00:08.3]} 35... Nxe2 {[%clk
0:01:57.8]} 36. Qg2 {[%clk 0:00:05.1]} 36... Nxg1 {[%clk 0:01:54.4]} 37. Nxe8
{[%clk 0:00:03.9]} 37... Nxf3 {[%clk 0:01:54.9]} 38. Qg5 {[%clk 0:00:03.6]}
38... Rxh2# {[%clk 0:01:54.4]} 0-1

[Event "*** Titled Tuesday Blitz"]
[Site "Chess.com"]
[Date "2021.04.06"]
[Round "3"]
[White "lacafi"]
[Black "Keures"]
[Result "1-0"]
[WhiteElo "2209"]
[BlackElo "2349"]
[TimeControl "180+1"]
[EndTime "10:27:17 PDT"]
[Termination "lacafi won by checkmate"]

1. d4 {[%clk 0:03:00.9]} 1... Nf6 {[%clk 0:02:59.8]} 2. Nf3 {[%clk 0:03:01.2]}
2... e6 {[%clk 0:02:58.7]} 3. e3 {[%clk 0:03:01.6]} 3... b6 {[%clk 0:02:57.4]}
4. Bd3 {[%clk 0:03:02.1]} 4... Bb7 {[%clk 0:02:55.3]} 5. Nbd2 {[%clk 0:03:02.4]}
5... Be7 {[%clk 0:02:54.8]} 6. Qe2 {[%clk 0:03:02.9]} 6... d5 {[%clk 0:02:54.8]}
7. O-O {[%clk 0:02:59.9]} 7... O-O {[%clk 0:02:54.4]} 8. e4 {[%clk 0:03:00.5]}
8... dxe4 {[%clk 0:02:54.2]} 9. Nxe4 {[%clk 0:03:01.1]} 9... Nbd7 {[%clk
0:02:52.8]} 10. Neg5 {[%clk 0:02:59.3]} 10... h6 {[%clk 0:02:49.6]} 11. Nxe6
{[%clk 0:02:59.5]} 11... fxe6 {[%clk 0:02:36.4]} 12. Qxe6+ {[%clk 0:02:56.5]}
12... Kh8 {[%clk 0:02:34.5]} 13. Nh4 {[%clk 0:02:53.9]} 13... Be4 {[%clk
0:01:54.5]} 14. Bxe4 {[%clk 0:02:49.8]} 14... Nxe4 {[%clk 0:01:54]} 15. Ng6+
{[%clk 0:02:48.5]} 15... Kh7 {[%clk 0:01:51.8]} 16. Nxf8+ {[%clk 0:02:47.4]}
16... Nxf8 {[%clk 0:01:47.6]} 17. Qxe4+ {[%clk 0:02:45.2]} 17... Kh8 {[%clk
0:01:48.3]} 18. Bf4 {[%clk 0:02:37.5]} 18... Rc8 {[%clk 0:01:46.7]} 19. Rfe1
{[%clk 0:02:32.4]} 19... Bf6 {[%clk 0:01:46.8]} 20. Be5 {[%clk 0:02:28.4]} 20...
Nd7 {[%clk 0:01:46.7]} 21. Bxf6 {[%clk 0:02:22.6]} 21... Nxf6 {[%clk 0:01:47.6]}
22. Qe6 {[%clk 0:02:21.4]} 22... Rb8 {[%clk 0:01:40.9]} 23. Rad1 {[%clk
0:02:21.1]} 23... Rb7 {[%clk 0:01:23.4]} 24. Qf7 {[%clk 0:02:15.2]} 24... Qg8
{[%clk 0:01:10.8]} 25. Qxg8+ {[%clk 0:02:08.6]} 25... Kxg8 {[%clk 0:01:11.7]}
26. c4 {[%clk 0:02:03.8]} 26... c6 {[%clk 0:01:10.1]} 27. Re6 {[%clk 0:02:01.6]}
27... Rc7 {[%clk 0:01:08.4]} 28. Rde1 {[%clk 0:01:58.1]} 28... Kf7 {[%clk
0:01:08]} 29. b4 {[%clk 0:01:53.2]} 29... a5 {[%clk 0:01:05.4]} 30. bxa5 {[%clk
0:01:50.1]} 30... bxa5 {[%clk 0:01:06.3]} 31. g3 {[%clk 0:01:46.5]} 31... Rd7
{[%clk 0:00:56.7]} 32. Rxc6 {[%clk 0:01:44.1]} 32... Rxd4 {[%clk 0:00:56.8]} 33.
c5 {[%clk 0:01:37.1]} 33... Rd2 {[%clk 0:00:55.2]} 34. Rc7+ {[%clk 0:01:35.1]}
34... Kg6 {[%clk 0:00:55.1]} 35. c6 {[%clk 0:01:32]} 35... Ng4 {[%clk
0:00:51.6]} 36. Ree7 {[%clk 0:01:19.8]} 36... Nxf2 {[%clk 0:00:49.3]} 37. Rxg7+
{[%clk 0:01:17.9]} 37... Kh5 {[%clk 0:00:49.8]} 38. Rcf7 {[%clk 0:01:12.2]}
38... Ng4 {[%clk 0:00:35.3]} 39. Rf5# {[%clk 0:01:03.1]} 1-0

[Event "*** Titled Tuesday Blitz"]
[Site "Chess.com"]
[Date "2021.04.06"]
[Round "3"]
[White "Ze-Pequeno"]
[Black "Chigorinetz"]
[Result "0-1"]
[WhiteElo "2244"]
[BlackElo "2513"]
[TimeControl "180+1"]
[EndTime "10:27:18 PDT"]
[Termination "Chigorinetz won on time"]

1. e4 {[%clk 0:03:00.9]} 1... c5 {[%clk 0:02:59.3]} 2. Nf3 {[%clk 0:03:00.2]}
2... Nc6 {[%clk 0:02:59.3]} 3. d4 {[%clk 0:03:00]} 3... cxd4 {[%clk 0:02:59]} 4.
Nxd4 {[%clk 0:03:00.9]} 4... g6 {[%clk 0:02:59.4]} 5. c4 {[%clk 0:03:00.3]} 5...
Bg7 {[%clk 0:02:59]} 6. Be3 {[%clk 0:03:00.4]} 6... Nf6 {[%clk 0:02:59.1]} 7.
Nc3 {[%clk 0:03:00.7]} 7... Ng4 {[%clk 0:02:59.3]} 8. Qxg4 {[%clk 0:03:00.1]}
8... Nxd4 {[%clk 0:02:59.5]} 9. Qd1 {[%clk 0:03:00.5]} 9... Ne6 {[%clk
0:02:59.7]} 10. Rc1 {[%clk 0:03:00.2]} 10... Qa5 {[%clk 0:02:59.7]} 11. Bd3
{[%clk 0:02:33.7]} 11... b6 {[%clk 0:02:59.7]} 12. O-O {[%clk 0:02:27.9]} 12...
Bb7 {[%clk 0:02:59.7]} 13. f4 {[%clk 0:02:28.1]} 13... Bxc3 {[%clk 0:02:56.8]}
14. Rxc3 {[%clk 0:02:22.1]} 14... Qxa2 {[%clk 0:02:56.7]} 15. b4 {[%clk
0:01:41.4]} 15... Qb2 {[%clk 0:02:55.3]} 16. Rb3 {[%clk 0:01:34.4]} 16... Qg7
{[%clk 0:02:54.9]} 17. Rf2 {[%clk 0:01:15.6]} 17... O-O {[%clk 0:02:40.8]} 18.
f5 {[%clk 0:01:14.8]} 18... Nd8 {[%clk 0:02:35.4]} 19. f6 {[%clk 0:01:11.7]}
19... exf6 {[%clk 0:02:34]} 20. Bd4 {[%clk 0:01:11.3]} 20... Re8 {[%clk
0:02:18]} 21. Bxf6 {[%clk 0:01:10.6]} 21... Qf8 {[%clk 0:02:18.1]} 22. Qg4
{[%clk 0:00:56]} 22... a5 {[%clk 0:02:07.6]} 23. e5 {[%clk 0:00:25.8]} 23...
axb4 {[%clk 0:02:02.8]} 24. Bf1 {[%clk 0:00:24.2]} 24... Ra3 {[%clk 0:01:41.5]}
25. Rfb2 {[%clk 0:00:19.2]} 25... Nc6 {[%clk 0:01:35.2]} 26. Qg5 {[%clk
0:00:14.9]} 26... Nxe5 {[%clk 0:01:31.6]} 27. Bxe5 {[%clk 0:00:14.2]} 27... Qc5+
{[%clk 0:01:31.5]} 28. Rf2 {[%clk 0:00:12.3]} 28... Qxe5 {[%clk 0:01:23.9]} 0-1

[Event "*** Titled Tuesday Blitz"]
[Site "Chess.com"]
[Date "2021.04.06"]
[Round "3"]
[White "attack2mateU"]
[Black "Blitzking642"]
[Result "0-1"]
[WhiteElo "2693"]
[BlackElo "2459"]
[TimeControl "180+1"]
[EndTime "10:27:22 PDT"]
[Termination "Blitzking642 won by resignation"]

1. e4 {[%clk 0:03:00.9]} 1... c5 {[%clk 0:02:59.5]} 2. Nf3 {[%clk 0:03:00.4]}
2... Nc6 {[%clk 0:03:00]} 3. Bb5 {[%clk 0:03:00]} 3... g6 {[%clk 0:03:00]} 4.
O-O {[%clk 0:02:58.5]} 4... Bg7 {[%clk 0:03:00]} 5. c3 {[%clk 0:02:58.6]} 5...
Nf6 {[%clk 0:02:59.6]} 6. Re1 {[%clk 0:02:58.4]} 6... O-O {[%clk 0:02:58.8]} 7.
d4 {[%clk 0:02:58.5]} 7... d5 {[%clk 0:02:59.2]} 8. e5 {[%clk 0:02:57.3]} 8...
Ne4 {[%clk 0:02:59.8]} 9. Bxc6 {[%clk 0:02:54.3]} 9... bxc6 {[%clk 0:03:00.7]}
10. Be3 {[%clk 0:02:54.5]} 10... Rb8 {[%clk 0:02:45.3]} 11. b3 {[%clk
0:02:50.8]} 11... Bf5 {[%clk 0:02:29.7]} 12. Nh4 {[%clk 0:02:18.7]} 12... e6
{[%clk 0:02:27.6]} 13. Nxf5 {[%clk 0:02:16.6]} 13... exf5 {[%clk 0:02:21]} 14.
f3 {[%clk 0:02:11.5]} 14... Ng5 {[%clk 0:02:20.6]} 15. Bxg5 {[%clk 0:01:55]}
15... Qxg5 {[%clk 0:02:19.8]} 16. dxc5 {[%clk 0:01:39.8]} 16... Rfe8 {[%clk
0:02:01.4]} 17. Qd2 {[%clk 0:01:17.3]} 17... Qxd2 {[%clk 0:01:50.1]} 18. Nxd2
{[%clk 0:01:18.2]} 18... Bxe5 {[%clk 0:01:47.2]} 19. Rac1 {[%clk 0:00:41.9]}
19... Bf4 {[%clk 0:01:46.5]} 20. Rxe8+ {[%clk 0:00:42.8]} 20... Rxe8 {[%clk
0:01:45.7]} 21. Rd1 {[%clk 0:00:43.7]} 21... Re2 {[%clk 0:01:41.6]} 22. Nf1
{[%clk 0:00:44.2]} 22... Rxa2 {[%clk 0:01:39.1]} 23. g3 {[%clk 0:00:43.2]} 23...
Be5 {[%clk 0:01:35.1]} 24. c4 {[%clk 0:00:42.7]} 24... dxc4 {[%clk 0:01:12.5]}
25. bxc4 {[%clk 0:00:43.6]} 25... a5 {[%clk 0:01:12.6]} 26. Rd8+ {[%clk
0:00:44.2]} 26... Kg7 {[%clk 0:01:12.4]} 27. Rc8 {[%clk 0:00:45.1]} 27... Bd4+
{[%clk 0:00:49.6]} 28. Kh1 {[%clk 0:00:45.4]} 28... Rf2 {[%clk 0:00:48]} 29. Kg1
{[%clk 0:00:44.5]} 29... Rxf3+ {[%clk 0:00:44.5]} 30. Kg2 {[%clk 0:00:44.7]}
30... Rf2+ {[%clk 0:00:45]} 31. Kg1 {[%clk 0:00:45.3]} 31... a4 {[%clk
0:00:33.3]} 0-1

[Event "*** Titled Tuesday Blitz"]
[Site "Chess.com"]
[Date "2021.04.06"]
[Round "3"]
[White "Yaryi_sergey"]
[Black "Pantata007"]
[Result "1-0"]
[WhiteElo "2530"]
[BlackElo "2252"]
[TimeControl "180+1"]
[EndTime "10:27:22 PDT"]
[Termination "Yaryi_sergey won on time"]

1. Nf3 {[%clk 0:03:00.1]} 1... d5 {[%clk 0:02:58.7]} 2. g3 {[%clk 0:02:59.6]}
2... Nf6 {[%clk 0:02:56.9]} 3. Bg2 {[%clk 0:02:54.3]} 3... c6 {[%clk 0:02:57.3]}
4. c4 {[%clk 0:02:47.9]} 4... Bf5 {[%clk 0:02:42.4]} 5. cxd5 {[%clk 0:02:46.2]}
5... cxd5 {[%clk 0:02:42]} 6. O-O {[%clk 0:02:47.1]} 6... Nc6 {[%clk 0:02:41.3]}
7. a3 {[%clk 0:02:45]} 7... e5 {[%clk 0:02:39.6]} 8. d4 {[%clk 0:02:34]} 8... e4
{[%clk 0:02:25.3]} 9. Ne5 {[%clk 0:02:33.3]} 9... Bd6 {[%clk 0:02:19.7]} 10. f4
{[%clk 0:02:28.6]} 10... exf3 {[%clk 0:01:58.8]} 11. Nxc6 {[%clk 0:02:23.4]}
11... bxc6 {[%clk 0:01:57.3]} 12. exf3 {[%clk 0:02:22.1]} 12... O-O {[%clk
0:01:54.1]} 13. f4 {[%clk 0:02:20.4]} 13... Be4 {[%clk 0:01:50.1]} 14. Nc3
{[%clk 0:02:18.2]} 14... Bxg2 {[%clk 0:01:49.2]} 15. Kxg2 {[%clk 0:02:14]} 15...
Re8 {[%clk 0:01:49.7]} 16. f5 {[%clk 0:02:02.2]} 16... Rb8 {[%clk 0:01:19.6]}
17. b4 {[%clk 0:02:00.7]} 17... a5 {[%clk 0:01:17.8]} 18. bxa5 {[%clk
0:01:58.2]} 18... Qxa5 {[%clk 0:01:17.1]} 19. Bd2 {[%clk 0:01:58.1]} 19... Qa6
{[%clk 0:01:13.7]} 20. Bg5 {[%clk 0:01:54.2]} 20... Rb2+ {[%clk 0:01:07.6]} 21.
Kh3 {[%clk 0:01:49.7]} 21... Ne4 {[%clk 0:00:37]} 22. Nxe4 {[%clk 0:01:45.6]}
22... Rxe4 {[%clk 0:00:34.7]} 23. Re1 {[%clk 0:01:42.1]} 23... h6 {[%clk
0:00:25.7]} 24. Rxe4 {[%clk 0:01:41.5]} 24... dxe4 {[%clk 0:00:25.7]} 25. Bh4
{[%clk 0:01:38.1]} 25... Qb5 {[%clk 0:00:20.1]} 26. Qg4 {[%clk 0:01:37.2]} 26...
Rf2 {[%clk 0:00:13.8]} 27. Re1 {[%clk 0:01:36.1]} 27... Qb2 {[%clk 0:00:07.7]}
28. Qxe4 {[%clk 0:01:35.8]} 28... Rxh2+ {[%clk 0:00:06.9]} 29. Kg4 {[%clk
0:01:36]} 29... Qf2 {[%clk 0:00:02.1]} 30. Re3 {[%clk 0:01:28.3]} 1-0

[Event "*** Titled Tuesday Blitz"]
[Site "Chess.com"]
[Date "2021.04.06"]
[Round "3"]
[White "BeyondMadness"]
[Black "enriquetejedor"]
[Result "1-0"]
[WhiteElo "2270"]
[BlackElo "2584"]
[TimeControl "180+1"]
[EndTime "10:27:24 PDT"]
[Termination "BeyondMadness won by resignation"]

1. d4 {[%clk 0:03:00.9]} 1... e6 {[%clk 0:01:53.1]} 2. e4 {[%clk 0:02:59.5]}
2... d5 {[%clk 0:01:52.5]} 3. e5 {[%clk 0:02:59.8]} 3... c5 {[%clk 0:01:52.1]}
4. c3 {[%clk 0:03:00.4]} 4... Nc6 {[%clk 0:01:53]} 5. Nf3 {[%clk 0:03:00.6]}
5... f6 {[%clk 0:01:50.9]} 6. Bd3 {[%clk 0:02:58.8]} 6... c4 {[%clk 0:01:49.9]}
7. Bc2 {[%clk 0:02:57.6]} 7... Qc7 {[%clk 0:01:49.3]} 8. O-O {[%clk 0:02:39.5]}
8... fxe5 {[%clk 0:01:48.1]} 9. Nxe5 {[%clk 0:02:39]} 9... Nxe5 {[%clk
0:01:48.1]} 10. dxe5 {[%clk 0:02:39.4]} 10... Qxe5 {[%clk 0:01:49]} 11. Re1
{[%clk 0:02:39.3]} 11... Qd6 {[%clk 0:01:47.1]} 12. Qh5+ {[%clk 0:02:35.3]}
12... Kd8 {[%clk 0:01:45.9]} 13. Na3 {[%clk 0:02:29.8]} 13... Nf6 {[%clk
0:01:44.6]} 14. Bg5 {[%clk 0:02:26.5]} 14... Be7 {[%clk 0:01:43.7]} 15. Bxf6
{[%clk 0:02:23.8]} 15... gxf6 {[%clk 0:01:43.8]} 16. Nb5 {[%clk 0:02:22.6]}
16... Qf4 {[%clk 0:01:41.7]} 17. Rad1 {[%clk 0:02:12.5]} 17... Bd7 {[%clk
0:01:28.1]} 18. Nd4 {[%clk 0:02:08.4]} 18... e5 {[%clk 0:01:24.8]} 19. Nf5
{[%clk 0:01:53.3]} 19... Bc6 {[%clk 0:01:18]} 20. Qf7 {[%clk 0:01:45.9]} 20...
Re8 {[%clk 0:01:09.7]} 21. Rxd5+ {[%clk 0:01:37]} 21... Bxd5 {[%clk 0:01:07.2]}
22. Qxd5+ {[%clk 0:01:37.4]} 22... Kc7 {[%clk 0:01:01.8]} 23. Be4 {[%clk
0:01:34.5]} 23... Rab8 {[%clk 0:00:55.6]} 24. Rd1 {[%clk 0:01:26]} 24... Kb6
{[%clk 0:00:35.4]} 25. Nxe7 {[%clk 0:01:16.3]} 25... Rbd8 {[%clk 0:00:20.3]} 26.
Qxb7+ {[%clk 0:01:08.6]} 26... Ka5 {[%clk 0:00:08.5]} 27. Nc6+ {[%clk
0:01:06.3]} 1-0

[Event "*** Titled Tuesday Blitz"]
[Site "Chess.com"]
[Date "2021.04.06"]
[Round "3"]
[White "Supernotar"]
[Black "Sibelephant"]
[Result "1/2-1/2"]
[WhiteElo "2691"]
[BlackElo "3110"]
[TimeControl "180+1"]
[EndTime "10:27:25 PDT"]
[Termination "Game drawn by repetition"]

1. d4 {[%clk 0:03:00.9]} 1... d5 {[%clk 0:02:58.5]} 2. c4 {[%clk 0:03:01.1]}
2... e6 {[%clk 0:02:59]} 3. Nf3 {[%clk 0:03:01.1]} 3... a6 {[%clk 0:02:59.2]} 4.
e3 {[%clk 0:03:01.2]} 4... Nf6 {[%clk 0:02:59]} 5. Nbd2 {[%clk 0:03:01.1]} 5...
b6 {[%clk 0:02:52.9]} 6. Bd3 {[%clk 0:03:01.3]} 6... Bb7 {[%clk 0:02:52.5]} 7.
O-O {[%clk 0:03:01.6]} 7... Bd6 {[%clk 0:02:47.8]} 8. Qe2 {[%clk 0:03:01.6]}
8... Nbd7 {[%clk 0:02:41.7]} 9. e4 {[%clk 0:03:01.9]} 9... dxe4 {[%clk
0:02:37.6]} 10. Nxe4 {[%clk 0:03:02.8]} 10... O-O {[%clk 0:02:36.1]} 11. b3
{[%clk 0:03:02.3]} 11... Nxe4 {[%clk 0:02:20.6]} 12. Bxe4 {[%clk 0:03:03.2]}
12... Bxe4 {[%clk 0:02:20.6]} 13. Qxe4 {[%clk 0:03:04.1]} 13... Nf6 {[%clk
0:02:20.9]} 14. Qe2 {[%clk 0:03:04.3]} 14... c5 {[%clk 0:02:17.3]} 15. Bb2
{[%clk 0:03:01.2]} 15... cxd4 {[%clk 0:02:16.6]} 16. Nxd4 {[%clk 0:03:02.1]}
16... Qc7 {[%clk 0:02:15.1]} 17. g3 {[%clk 0:03:00.4]} 17... Rad8 {[%clk
0:02:12.7]} 18. Rad1 {[%clk 0:02:59.9]} 18... Bc5 {[%clk 0:02:05.8]} 19. Rd3
{[%clk 0:02:57.4]} 19... Qb7 {[%clk 0:02:00.5]} 20. a4 {[%clk 0:02:52.3]} 20...
Rd7 {[%clk 0:01:46.6]} 21. Rfd1 {[%clk 0:02:51.3]} 21... Ne4 {[%clk 0:01:21.3]}
22. f3 {[%clk 0:02:38.2]} 22... Nf6 {[%clk 0:01:06.4]} 23. Kg2 {[%clk
0:02:38.1]} 23... h6 {[%clk 0:00:55.7]} 24. Bc3 {[%clk 0:02:29.1]} 24... Rfd8
{[%clk 0:00:47.9]} 25. Qe5 {[%clk 0:02:26.7]} 25... Ne8 {[%clk 0:00:39]} 26. Qe2
{[%clk 0:02:23.1]} 26... Qc8 {[%clk 0:00:28.9]} 27. Nc2 {[%clk 0:02:18.8]} 27...
a5 {[%clk 0:00:28.7]} 28. Rxd7 {[%clk 0:02:14.4]} 28... Rxd7 {[%clk 0:00:29]}
29. Rxd7 {[%clk 0:02:15]} 29... Qxd7 {[%clk 0:00:29.9]} 30. Ne1 {[%clk
0:02:08.2]} 30... Nd6 {[%clk 0:00:24.6]} 31. Nd3 {[%clk 0:02:06.4]} 31... Nb7
{[%clk 0:00:22.5]} 32. Nxc5 {[%clk 0:02:01.8]} 32... Nxc5 {[%clk 0:00:22.2]} 33.
Qe5 {[%clk 0:02:00.4]} 33... f6 {[%clk 0:00:14.7]} 34. Qb8+ {[%clk 0:02:00.4]}
34... Kh7 {[%clk 0:00:15.1]} 35. Qxb6 {[%clk 0:02:00.1]} 35... Qd3 {[%clk
0:00:09.5]} 36. Qxc5 {[%clk 0:01:58]} 36... Qxc3 {[%clk 0:00:09.9]} 37. Qb5
{[%clk 0:01:54.3]} 37... Qd2+ {[%clk 0:00:09.9]} 38. Kf1 {[%clk 0:01:37.5]}
38... Qd1+ {[%clk 0:00:08.7]} 39. Kf2 {[%clk 0:01:36.3]} 39... Qd2+ {[%clk
0:00:08.8]} 40. Kf1 {[%clk 0:01:36.6]} 40... Qd1+ {[%clk 0:00:07.6]} 41. Kf2
{[%clk 0:01:37]} 41... Qd2+ {[%clk 0:00:08]} 42. Kf1 {[%clk 0:01:37.4]} 1/2-1/2

[Event "*** Titled Tuesday Blitz"]
[Site "Chess.com"]
[Date "2021.04.06"]
[Round "3"]
[White "evgchess5"]
[Black "bazar-wokzal"]
[Result "1-0"]
[WhiteElo "2927"]
[BlackElo "2572"]
[TimeControl "180+1"]
[EndTime "10:27:26 PDT"]
[Termination "evgchess5 won by resignation"]

1. e4 {[%clk 0:02:59]} 1... Nc6 {[%clk 0:02:58.3]} 2. d4 {[%clk 0:02:57.7]} 2...
d5 {[%clk 0:02:58.2]} 3. e5 {[%clk 0:02:57.9]} 3... h5 {[%clk 0:02:58]} 4. c3
{[%clk 0:02:55.8]} 4... Bg4 {[%clk 0:02:57.5]} 5. Be2 {[%clk 0:02:52.9]} 5...
Qd7 {[%clk 0:02:57.3]} 6. h3 {[%clk 0:02:40.6]} 6... Bxe2 {[%clk 0:02:56.1]} 7.
Nxe2 {[%clk 0:02:38.5]} 7... O-O-O {[%clk 0:02:56]} 8. O-O {[%clk 0:02:35.3]}
8... f6 {[%clk 0:02:55.8]} 9. f4 {[%clk 0:02:34.7]} 9... g5 {[%clk 0:02:53.4]}
10. exf6 {[%clk 0:02:27.3]} 10... exf6 {[%clk 0:02:34.7]} 11. fxg5 {[%clk
0:02:26.2]} 11... fxg5 {[%clk 0:02:35.5]} 12. Bxg5 {[%clk 0:02:24.7]} 12... Be7
{[%clk 0:02:35.9]} 13. Bxe7 {[%clk 0:02:16.2]} 13... Ngxe7 {[%clk 0:02:35.6]}
14. Qd3 {[%clk 0:02:16]} 14... Rdg8 {[%clk 0:02:34.4]} 15. Nd2 {[%clk
0:02:14.8]} 15... Rg7 {[%clk 0:02:30.9]} 16. Rf2 {[%clk 0:02:04.2]} 16... Rhg8
{[%clk 0:02:30.1]} 17. Raf1 {[%clk 0:02:03.5]} 17... Ng6 {[%clk 0:02:21.8]} 18.
Qf5 {[%clk 0:02:00.6]} 18... Nh4 {[%clk 0:02:01.2]} 19. Qxd7+ {[%clk 0:02:00.1]}
19... Kxd7 {[%clk 0:02:01.1]} 20. Rf7+ {[%clk 0:01:46.4]} 20... Ne7 {[%clk
0:01:56.1]} 21. Rxg7 {[%clk 0:01:45.2]} 21... Rxg7 {[%clk 0:01:56.1]} 22. Rf2
{[%clk 0:01:31]} 22... Nef5 {[%clk 0:01:51.3]} 23. Nf3 {[%clk 0:01:28.6]} 23...
Nxf3+ {[%clk 0:01:39.1]} 24. Rxf3 {[%clk 0:01:28.5]} 24... Nh4 {[%clk
0:01:39.4]} 25. Rf2 {[%clk 0:01:27.7]} 25... b6 {[%clk 0:01:28.7]} 26. Nf4
{[%clk 0:01:26.6]} 26... Rg5 {[%clk 0:01:28.4]} 27. Kh2 {[%clk 0:01:23.9]} 27...
Kd6 {[%clk 0:01:26.8]} 28. g3 {[%clk 0:01:18]} 28... Nf5 {[%clk 0:01:25.3]} 29.
h4 {[%clk 0:01:11.7]} 29... Rg4 {[%clk 0:00:59.8]} 30. Nxh5 {[%clk 0:01:09.3]}
30... Nxd4 {[%clk 0:00:45.7]} 31. Nf6 {[%clk 0:01:01.5]} 31... Rg6 {[%clk
0:00:38.7]} 32. cxd4 {[%clk 0:00:59.9]} 32... c5 {[%clk 0:00:39.1]} 33. h5
{[%clk 0:00:57.5]} 33... Rh6 {[%clk 0:00:36]} 34. g4 {[%clk 0:00:56.7]} 34...
cxd4 {[%clk 0:00:36.2]} 35. g5 {[%clk 0:00:56.8]} 1-0

[Event "*** Titled Tuesday Blitz"]
[Site "Chess.com"]
[Date "2021.04.06"]
[Round "3"]
[White "willc-h99"]
[Black "NishaOnYoutube"]
[Result "0-1"]
[WhiteElo "2497"]
[BlackElo "2272"]
[TimeControl "180+1"]
[EndTime "10:27:27 PDT"]
[Termination "NishaOnYoutube won on time"]

1. c4 {[%clk 0:03:00.9]} 1... e5 {[%clk 0:02:58.9]} 2. g3 {[%clk 0:03:01.1]}
2... Nf6 {[%clk 0:02:59.3]} 3. Bg2 {[%clk 0:03:01.5]} 3... d5 {[%clk 0:02:59.6]}
4. cxd5 {[%clk 0:03:02.4]} 4... Nxd5 {[%clk 0:03:00]} 5. Nc3 {[%clk 0:03:03]}
5... Nb6 {[%clk 0:03:00.1]} 6. d3 {[%clk 0:03:00.3]} 6... Be7 {[%clk 0:02:56.5]}
7. Be3 {[%clk 0:02:57.5]} 7... O-O {[%clk 0:02:53.7]} 8. Rc1 {[%clk 0:02:56.1]}
8... f5 {[%clk 0:02:41.5]} 9. Nf3 {[%clk 0:02:22.9]} 9... Nc6 {[%clk 0:02:35.2]}
10. O-O {[%clk 0:02:07.4]} 10... f4 {[%clk 0:02:28.8]} 11. Bd2 {[%clk
0:02:07.3]} 11... fxg3 {[%clk 0:02:09.1]} 12. hxg3 {[%clk 0:02:05.7]} 12... Bg4
{[%clk 0:02:08.9]} 13. Ne4 {[%clk 0:02:00.6]} 13... Nd4 {[%clk 0:01:59.2]} 14.
Nxd4 {[%clk 0:01:52.8]} 14... exd4 {[%clk 0:01:59]} 15. Qb3+ {[%clk 0:01:38.2]}
15... Kh8 {[%clk 0:01:57.9]} 16. Rfe1 {[%clk 0:01:17.7]} 16... c6 {[%clk
0:01:43.4]} 17. Nc5 {[%clk 0:01:13.1]} 17... Bxc5 {[%clk 0:01:35.9]} 18. Rxc5
{[%clk 0:01:12.6]} 18... Qe7 {[%clk 0:01:34.2]} 19. Rg5 {[%clk 0:01:03.6]} 19...
Be6 {[%clk 0:01:24.7]} 20. Qb4 {[%clk 0:00:55.3]} 20... Qf6 {[%clk 0:01:14.8]}
21. Rf1 {[%clk 0:00:17.8]} 21... Rae8 {[%clk 0:01:11.2]} 22. Bf3 {[%clk
0:00:17.2]} 22... Bd5 {[%clk 0:01:02.7]} 23. Bxd5 {[%clk 0:00:17]} 23... Nxd5
{[%clk 0:01:02.3]} 24. Qb6 {[%clk 0:00:17.1]} 24... axb6 {[%clk 0:01:01.6]} 0-1